bitfinex-derivatives/quotes_BTCF0:USTF0_20250718
["timestamp","ask_amount","ask_price","bid_price","bid_amount"]
[1752837692663,0.63645047,118880.0,118870.0,0.07071]
[1752837694265,0.2547748,118880.0,118870.0,0.011]
[1752837695064,0.63645047,118880.0,118870.0,0.011]
[1752837695359,0.2547748,118880.0,118870.0,0.011]
[1752837695565,0.63645047,118880.0,118870.0,0.004]
[1752837695859,0.63645047,118880.0,118870.0,0.008]
[1752837696465,0.63645047,118880.0,118870.0,0.006]
[1752837697556,0.2547748,118880.0,118870.0,0.004]
[1752837697759,1.24881047,118880.0,118870.0,0.004]
[1752837698767,0.8671348,118880.0,118870.0,0.004]
[1752837698967,1.24881047,118880.0,118870.0,0.004]
[1752837699665,0.8671348,118880.0,118870.0,0.004]
[1752837700068,1.24881047,118880.0,118870.0,0.004]
[1752837700469,0.8671348,118880.0,118870.0,0.004]
[1752837700670,1.24881047,118880.0,118870.0,0.004]
[1752837700970,0.2548031,118860.0,118850.0,1.34022833]
[1752837701765,0.2548031,118860.0,118850.0,1.3176873]
[1752837701962,0.2548031,118860.0,118850.0,1.28748557]
[1752837702171,0.2548031,118860.0,118850.0,1.29148557]
[1752837702370,0.2548031,118860.0,118850.0,0.9028732]
[1752837702671,0.2548031,118860.0,118850.0,0.8608265]
[1752837703171,0.2548031,118860.0,118850.0,0.8628265]
[1752837704972,0.2397031,118860.0,118850.0,1.24450217]
[1752837705272,0.2548031,118860.0,118850.0,0.2635865]
[1752837705474,0.2548031,118860.0,118850.0,0.64526217]
[1752837707176,0.2548031,118860.0,118850.0,0.2635865]
[1752837707377,0.2548031,118860.0,118850.0,0.30888598]
[1752837707777,0.2548031,118860.0,118850.0,0.69056165]
[1752837708277,0.2548031,118860.0,118850.0,0.30888598]
[1752837708475,0.2548031,118860.0,118850.0,0.69056165]
[1752837709577,0.2548031,118860.0,118850.0,0.30888598]
[1752837709780,0.2548031,118860.0,118850.0,0.69056165]
[1752837710170,0.2548031,118860.0,118850.0,0.30888598]
[1752837711173,0.2548031,118860.0,118850.0,0.69056165]
[1752837711376,0.2548031,118860.0,118850.0,0.64526217]
[1752837711675,0.2397031,118860.0,118850.0,0.2635865]
[1752837711877,0.2397031,118860.0,118850.0,0.67549261]
[1752837712278,0.2153231,118860.0,118850.0,0.67549261]
[1752837712478,0.1681731,118860.0,118850.0,0.67549261]
[1752837712978,0.44975486,118870.0,118860.0,0.2500131]
[1752837713174,0.44975486,118870.0,118860.0,0.88852702]
[1752837713569,0.04731,118870.0,118860.0,1.30043313]
[1752837713779,0.2551088,118880.0,118870.0,0.2499989]
[1752837713976,0.2551088,118880.0,118870.0,0.28542934]
[1752837714177,0.2551088,118880.0,118870.0,0.30810364]
[1752837714578,0.2551088,118880.0,118870.0,0.68977931]
[1752837714780,0.2551088,118880.0,118870.0,0.28542934]
[1752837715077,0.2561088,118880.0,118870.0,0.6897868]
[1752837715481,0.1929948,118880.0,118870.0,0.6897868]
[1752837715681,0.1949948,118880.0,118870.0,0.66710501]
[1752837715881,0.02685,118880.0,118870.0,0.66710501]
[1752837716084,0.1949948,118880.0,118870.0,0.66710501]
[1752837716287,0.05031,118880.0,118870.0,0.66710501]
[1752837716478,0.2184548,118880.0,118870.0,0.28542934]
[1752837716678,0.2237048,118880.0,118870.0,0.66710501]
[1752837717289,0.2237048,118880.0,118870.0,0.71244837]
[1752837717290,0.2402548,118880.0,118870.0,0.71244837]
[1752837717684,0.05256,118900.0,118870.0,1.34420514]
[1752837717885,0.2400065,118900.0,118890.0,0.65949979]
[1752837718188,0.2550665,118900.0,118890.0,0.67647832]
[1752837718886,0.2590665,118900.0,118890.0,0.67647832]
[1752837719190,0.09095,118900.0,118890.0,0.67647832]
[1752837719489,0.09095,118900.0,118890.0,0.6537948]
[1752837719490,0.2550665,118900.0,118890.0,0.6537948]
[1752837719683,0.2630665,118900.0,118890.0,0.6537948]
[1752837720092,0.2630665,118900.0,118890.0,0.72038567]
[1752837720386,0.2630665,118900.0,118890.0,1.32966567]
[1752837721285,0.2630665,118900.0,118890.0,0.94779]
[1752837721489,0.2630665,118900.0,118890.0,1.35193672]
[1752837722391,0.2630665,118900.0,118890.0,0.97026105]
[1752837722690,0.2550948,118880.0,118870.0,0.12904897]
[1752837722893,0.2550948,118880.0,118870.0,0.70765853]
[1752837723494,0.2550948,118880.0,118870.0,1.2626631]
[1752837723892,0.2217048,118880.0,118870.0,1.2626631]
[1752837724983,0.2227048,118880.0,118870.0,1.0945042]
[1752837725186,0.2570948,118880.0,118870.0,1.0945042]
[1752837726194,0.2570948,118880.0,118870.0,1.2626631]
[1752837726589,0.2570948,118880.0,118870.0,0.88098743]
[1752837727293,0.2570948,118880.0,118870.0,0.88194743]
[1752837727896,0.2570948,118880.0,118870.0,1.2636231]
[1752837731796,0.2570948,118880.0,118870.0,0.88194743]
[1752837731996,0.2570948,118880.0,118870.0,1.2636231]
[1752837735298,0.2570948,118880.0,118870.0,0.88194743]
[1752837735498,0.2570948,118880.0,118870.0,1.2636231]
[1752837736295,0.2570948,118880.0,118870.0,0.6538231]
[1752837736591,0.2570948,118880.0,118870.0,1.2630631]
[1752837742101,0.2392548,118880.0,118870.0,1.2630631]
[1752837742301,0.2227048,118880.0,118870.0,1.2630631]
[1752837742600,0.2227048,118880.0,118870.0,0.88138743]
[1752837742800,0.2227048,118880.0,118870.0,1.2630631]
[1752837742999,0.2227048,118880.0,118870.0,1.26322004]
[1752837743196,0.002,118880.0,118870.0,1.26322004]
[1752837743402,0.002,118880.0,118870.0,1.29345048]
[1752837743801,0.1946549,118880.0,118870.0,0.91177481]
[1752837744102,0.2245249,118880.0,118870.0,1.26322004]
[1752837744601,0.2245249,118880.0,118870.0,0.27230437]
[1752837744896,0.2582349,118880.0,118870.0,1.26198004]
[1752837745296,0.2582349,118880.0,118870.0,0.88030437]
[1752837745606,0.2582349,118880.0,118870.0,0.65398004]
[1752837745900,0.2582349,118880.0,118870.0,0.88026437]
[1752837746203,0.2582349,118880.0,118870.0,1.26194004]
[1752837746394,0.2582349,118880.0,118870.0,0.27230437]
[1752837746595,0.2582349,118880.0,118870.0,0.88022437]
[1752837746795,0.2582349,118880.0,118870.0,1.26190004]
[1752837747105,0.2582349,118880.0,118870.0,0.88022437]
[1752837747296,0.2582349,118880.0,118870.0,1.26190004]
[1752837748304,0.2582349,118880.0,118870.0,0.88022437]
[1752837752503,0.2582349,118880.0,118870.0,1.26190004]
[1752837754103,0.2582349,118880.0,118870.0,1.28459399]
[1752837754311,0.09009,118880.0,118870.0,1.28459399]
[1752837754706,0.2582354,118880.0,118870.0,1.28459399]
[1752837755610,0.2582354,118880.0,118870.0,0.90291832]
[1752837755910,0.2582354,118880.0,118870.0,1.28459399]
[1752837756410,0.2582354,118880.0,118870.0,0.90291832]
[1752837756610,0.2582354,118880.0,118870.0,1.28459399]
[1752837757111,0.09009,118880.0,118870.0,1.28459399]
[1752837757412,0.2582353,118880.0,118870.0,1.28459399]
[1752837758715,0.07326903,118900.0,118890.0,0.2559412]
[1752837758916,0.01888903,118900.0,118890.0,1.26430773]
[1752837759511,0.07326903,118900.0,118890.0,1.26430773]
[1752837760015,0.07726903,118900.0,118890.0,1.26430773]
[1752837760416,0.08026903,118900.0,118890.0,1.26430773]
[1752837760911,0.08026903,118900.0,118890.0,1.33056377]
[1752837763018,0.08026903,118900.0,118890.0,0.9488881]
[1752837763218,0.08026903,118900.0,118890.0,1.33056377]
[1752837763418,0.08026903,118900.0,118890.0,0.9488881]
[1752837763717,0.08026903,118900.0,118890.0,1.33056377]
[1752837764017,0.24838613,118900.0,118890.0,1.33056377]
[1752837764216,0.28209613,118900.0,118890.0,1.33056377]
[1752837764816,0.2632071,118900.0,118890.0,1.33056377]
[1752837765520,0.09509,118900.0,118890.0,1.33056377]
[1752837765816,0.2632071,118900.0,118890.0,1.33056377]
[1752837766218,0.2632071,118900.0,118890.0,1.3532518]
[1752837767819,0.09509,118900.0,118890.0,0.97157613]
[1752837768119,0.09509,118900.0,118890.0,1.3532518]
[1752837768716,0.09509,118900.0,118890.0,0.7438118]
[1752837769018,0.2632071,118900.0,118890.0,0.72112377]
[1752837769219,0.2632071,118900.0,118890.0,0.9472881]
[1752837769417,0.2632071,118900.0,118890.0,1.32896377]
[1752837769913,0.09509,118900.0,118890.0,1.32896377]
[1752837770113,0.2632071,118900.0,118890.0,1.32896377]
[1752837770916,0.2632071,118900.0,118890.0,0.9472881]
[1752837771119,0.2632071,118900.0,118890.0,1.32896377]
[1752837773418,0.2632071,118900.0,118890.0,0.9472881]
[1752837773718,0.2632071,118900.0,118890.0,1.32896377]
[1752837774120,0.2632071,118900.0,118890.0,0.9472881]
[1752837774320,0.2632071,118900.0,118890.0,1.32896377]
[1752837776021,0.2632071,118900.0,118890.0,1.32808377]
[1752837776222,0.2632071,118900.0,118890.0,0.72112377]
[1752837776421,0.2632071,118900.0,118890.0,1.32780377]
[1752837777221,0.2632071,118900.0,118890.0,0.9461281]
[1752837777423,0.2632071,118900.0,118890.0,1.32780377]
[1752837777724,0.2632071,118900.0,118890.0,1.32469377]
[1752837777920,0.2632071,118900.0,118890.0,1.32754377]
[1752837778522,0.1751171,118900.0,118890.0,1.32754377]
[1752837778720,0.2274471,118900.0,118890.0,1.32754377]
[1752837778918,0.2274471,118900.0,118890.0,0.9458681]
[1752837779121,0.2606371,118900.0,118890.0,1.32754377]
[1752837780323,0.2606371,118900.0,118890.0,0.9458681]
[1752837780518,0.2606371,118900.0,118890.0,1.32754377]
[1752837781519,0.2606371,118900.0,118890.0,1.35019235]
[1752837783826,0.09252,118900.0,118890.0,1.32754377]
[1752837784029,0.03075,118900.0,118890.0,1.32754377]
[1752837784224,0.007,118900.0,118890.0,1.32754377]
[1752837784428,0.007,118900.0,118890.0,1.35018464]
[1752837784628,0.007,118900.0,118890.0,1.32754377]
[1752837784829,0.03613,118900.0,118890.0,1.32754377]
[1752837785030,0.05933,118900.0,118890.0,1.32754377]
[1752837785529,0.05933,118900.0,118890.0,1.35018464]
[1752837785928,0.05933,118900.0,118890.0,1.32754377]
[1752837786428,0.05933,118900.0,118890.0,1.35018464]
[1752837786629,0.05933,118900.0,118890.0,1.32754377]
[1752837786831,0.2606393,118900.0,118890.0,1.32754377]
[1752837788128,0.09252,118900.0,118890.0,1.32754377]
[1752837788732,0.2606393,118900.0,118890.0,1.32754377]
[1752837789426,0.09252,118900.0,118890.0,1.35018464]
[1752837789629,0.007,118900.0,118890.0,1.35018464]
[1752837790033,0.06988,118920.0,118910.0,0.2532851]
[1752837790228,0.237971,118920.0,118910.0,1.23980077]
[1752837791326,0.257611,118920.0,118910.0,1.23980077]
[1752837791533,0.263611,118920.0,118910.0,1.23980077]
[1752837792132,0.263611,118920.0,118910.0,1.24980077]
[1752837792342,0.263611,118920.0,118910.0,0.8681251]
[1752837792638,0.263611,118920.0,118910.0,1.24980077]
[1752837792929,0.27192853,118920.0,118910.0,0.8681251]
[1752837793126,0.27192853,118920.0,118910.0,1.24980077]
[1752837794727,0.263611,118920.0,118910.0,1.24980077]
[1752837794932,0.263611,118920.0,118910.0,0.8681251]
[1752837795136,0.263611,118920.0,118910.0,1.24980077]
[1752837795939,0.263611,118920.0,118910.0,0.8681251]
[1752837796138,0.263611,118920.0,118910.0,1.24980077]
[1752837798041,0.192841,118920.0,118910.0,1.24980077]
[1752837798243,0.193841,118920.0,118910.0,1.24980077]
[1752837798442,0.199221,118920.0,118910.0,1.24980077]
[1752837798939,0.03113,118920.0,118910.0,1.24980077]
[1752837799236,0.002,118920.0,118910.0,1.25980077]
[1752837799443,0.001,118920.0,118910.0,1.2769156]
[1752837799644,0.002,118920.0,118910.0,1.2769156]
[1752837800343,0.002,118920.0,118910.0,1.29955647]
[1752837800540,0.001,118920.0,118910.0,1.29955647]
[1752837801049,0.2392389,118930.0,118920.0,0.2531612]
[1752837801239,0.02913,118930.0,118920.0,0.63483687]
[1752837801845,0.197207,118930.0,118920.0,0.63483687]
[1752837802547,0.198207,118930.0,118920.0,0.63483687]
[1752837802842,0.03013,118930.0,118920.0,0.2531612]
[1752837803142,0.198207,118930.0,118920.0,0.2531612]
[1752837803340,0.198207,118930.0,118920.0,0.63483687]
[1752837803541,0.198207,118930.0,118920.0,0.64483687]
[1752837804234,0.001,118930.0,118920.0,1.02651254]
[1752837804440,0.001,118930.0,118920.0,0.66747774]
[1752837805048,0.001,118930.0,118920.0,0.69766557]
[1752837805344,0.001,118930.0,118920.0,0.66747774]
[1752837806339,0.001,118930.0,118920.0,0.67581905]
[1752837809045,0.001,118930.0,118920.0,0.29414338]
[1752837809245,0.001,118930.0,118920.0,0.67581905]
[1752837813845,0.02388,118930.0,118920.0,0.67581905]
[1752837814041,0.001,118930.0,118920.0,0.67581905]
[1752837820952,0.1690777,118930.0,118920.0,0.67581905]
[1752837821352,0.001,118930.0,118920.0,0.67581905]
[1752837821553,0.1919577,118930.0,118920.0,0.67581905]
[1752837821754,0.02897,118930.0,118920.0,0.67581905]
[1752837822050,0.1970477,118930.0,118920.0,0.67581905]
[1752837822255,0.63605337,118930.0,118920.0,0.11500087]
[1752837822452,0.63605337,118930.0,118920.0,0.01]
[1752837822651,0.88605337,118930.0,118920.0,0.01]
[1752837822948,1.53219534,118930.0,118920.0,0.01]
[1752837823153,1.28219534,118930.0,118920.0,0.01]
[1752837823351,0.85237452,118930.0,118920.0,0.01]
[1752837823649,1.53219534,118930.0,118920.0,0.01]
[1752837824251,1.53219534,118930.0,118920.0,0.0046]
[1752837824953,1.05464275,118930.0,118920.0,0.00471849]
[1752837825553,0.6725537,118930.0,118920.0,0.00471849]
[1752837825753,1.05464275,118930.0,118920.0,0.00471849]
[1752837830157,0.80464275,118930.0,118920.0,0.00471849]
[1752837833558,0.2545618,118920.0,118910.0,0.01711483]
[1752837833757,0.63665085,118920.0,118910.0,0.01711483]
[1752837834760,0.70308779,118920.0,118910.0,0.01711483]
[1752837835060,0.70308779,118920.0,118910.0,0.01811483]
[1752837835560,1.30516779,118920.0,118910.0,0.01711483]
[1752837835761,1.30616779,118920.0,118910.0,0.01711483]
[1752837836357,1.30716779,118920.0,118910.0,0.01711483]
[1752837839068,0.92507874,118920.0,118910.0,0.01711483]
[1752837839269,1.30716779,118920.0,118910.0,0.01711483]
[1752837840674,1.30716779,118920.0,118910.0,0.02191483]
[1752837842368,0.92507874,118920.0,118910.0,0.02191483]
[1752837842570,1.30716779,118920.0,118910.0,0.02191483]
[1752837842965,1.30716779,118920.0,118910.0,0.01711483]
[1752837845174,1.30716779,118920.0,118910.0,0.80778283]
[1752837847380,1.68925684,118920.0,118910.0,0.790668]
[1752837847577,1.30716779,118920.0,118910.0,0.790668]
[1752837848981,1.30688779,118920.0,118910.0,0.790668]
[1752837859791,1.36732771,118920.0,118910.0,0.790668]
[1752837860591,1.30688779,118920.0,118910.0,0.790668]
[1752837863496,0.92479874,118920.0,118910.0,0.790668]
[1752837863685,1.30688779,118920.0,118910.0,0.790668]
[1752837864994,1.78453358,118920.0,118910.0,0.790668]
[1752837865194,1.8449735,118920.0,118910.0,0.790668]
[1752837865885,1.78453358,118920.0,118910.0,0.790668]
[1752837866797,1.8449735,118920.0,118910.0,0.790668]
[1752837869099,1.78453358,118920.0,118910.0,0.798108]
[1752837869801,1.8449735,118920.0,118910.0,0.798108]
[1752837874202,1.86008348,118920.0,118910.0,0.798108]
[1752837877105,1.00034864,118920.0,118910.0,0.798108]
[1752837877402,1.86008348,118920.0,118910.0,0.798108]
[1752837878405,1.78453358,118920.0,118910.0,0.798108]
[1752837881099,1.78453358,118920.0,118910.0,0.813418]
[1752837884208,1.84508954,118920.0,118910.0,0.813418]
[1752837885106,0.9853547,118920.0,118910.0,0.813418]
[1752837885605,1.84508954,118920.0,118910.0,0.813418]
[1752837886005,1.78453358,118920.0,118910.0,0.83666874]
[1752837889511,0.92479874,118920.0,118910.0,0.83666874]
[1752837889707,1.78453358,118920.0,118910.0,0.83666874]
[1752837893911,0.92479874,118920.0,118910.0,0.83666874]
[1752837894110,1.78453358,118920.0,118910.0,0.83666874]
[1752837894711,1.84508954,118920.0,118910.0,0.813418]
[1752837895108,1.78453358,118920.0,118910.0,0.813418]
[1752837896009,1.84508954,118920.0,118910.0,0.813418]
[1752837897213,1.78453358,118920.0,118910.0,0.83667336]
[1752837900917,1.78453358,118920.0,118910.0,0.85295336]
[1752837901213,0.75286616,118920.0,118910.0,0.85295336]
[1752837901417,1.34682616,118920.0,118910.0,0.90064336]
[1752837901715,1.77669358,118920.0,118910.0,0.90064336]
[1752837901916,0.91695874,118920.0,118910.0,0.90064336]
[1752837902216,0.91695874,118920.0,118910.0,1.33035074]
[1752837902217,1.27508922,118920.0,118910.0,1.33035074]
[1752837902817,0.68112922,118920.0,118910.0,1.33035074]
[1752837903010,1.27508922,118920.0,118910.0,1.33035074]
[1752837903417,1.28016922,118920.0,118910.0,1.33035074]
[1752837904816,1.28016922,118920.0,118910.0,1.30725542]
[1752837905512,1.28016922,118920.0,118910.0,1.33034067]
[1752837907318,1.28016922,118920.0,118910.0,1.30725542]
[1752837908018,1.28016922,118920.0,118910.0,0.877388]
[1752837908220,1.28016922,118920.0,118910.0,1.30725542]
[1752837908820,1.28016922,118920.0,118910.0,0.877388]
[1752837909119,1.28016922,118920.0,118910.0,1.30725542]
[1752837909319,0.8503018,118920.0,118910.0,1.30725542]
[1752837909522,1.28016922,118920.0,118910.0,1.30725542]
[1752837911121,0.8503018,118920.0,118910.0,1.30725542]
[1752837911421,1.28016922,118920.0,118910.0,0.877388]
[1752837911620,1.28016922,118920.0,118910.0,1.30725542]
[1752837912222,1.28016922,118920.0,118910.0,0.877388]
[1752837913322,0.8503018,118920.0,118910.0,0.877388]
[1752837913523,1.28016922,118920.0,118910.0,0.877388]
[1752837913925,1.28016922,118920.0,118910.0,0.90046699]
[1752837914125,1.28016922,118920.0,118910.0,0.877388]
[1752837915625,1.28016922,118920.0,118910.0,1.30725542]
[1752837917127,1.28016922,118920.0,118910.0,0.877388]
[1752837917328,1.28016922,118920.0,118910.0,1.30725542]
[1752837917729,0.8503018,118920.0,118910.0,1.30725542]
[1752837918028,1.28016922,118920.0,118910.0,1.30725542]
[1752837918429,1.28016922,118920.0,118910.0,0.877388]
[1752837920433,0.8503018,118920.0,118910.0,0.877388]
[1752837920633,1.28016922,118920.0,118910.0,0.877388]
[1752837922933,1.34713042,118920.0,118910.0,0.877388]
[1752837923832,1.34713042,118920.0,118910.0,1.30725542]
[1752837924136,1.34713042,118920.0,118910.0,0.877388]
[1752837924434,1.40768638,118920.0,118910.0,0.877388]
[1752837926236,1.34713042,118920.0,118910.0,0.877388]
[1752837926436,1.40768638,118920.0,118910.0,0.877388]
[1752837927337,1.34072518,118920.0,118910.0,0.877388]
[1752837928134,1.77789281,118920.0,118910.0,0.790668]
[1752837930240,0.91815797,118920.0,118910.0,0.790668]
[1752837930438,1.77789281,118920.0,118910.0,0.790668]
[1752837930840,1.77789281,118920.0,118910.0,0.795698]
[1752837932348,0.91815797,118920.0,118910.0,0.795698]
[1752837932549,1.77789281,118920.0,118910.0,0.795698]
[1752837934650,1.77789281,118920.0,118910.0,0.798228]
[1752837936147,1.77741281,118920.0,118910.0,0.814428]
[1752837936443,1.77741281,118920.0,118910.0,0.831068]
[1752837937051,1.77741281,118920.0,118910.0,0.855448]
[1752837937247,0.32419797,118920.0,118910.0,0.879738]
[1752837937453,1.27968922,118920.0,118910.0,1.30960542]
[1752837937653,1.27968922,118920.0,118910.0,0.879738]
[1752837938953,0.68620922,118920.0,118910.0,0.879738]
[1752837939156,1.27964922,118920.0,118910.0,0.879738]
[1752837939850,1.70951664,118920.0,118910.0,0.855448]
[1752837940054,0.8497818,118920.0,118910.0,0.855448]
[1752837940354,1.70951664,118920.0,118910.0,0.855448]
[1752837940754,1.27964922,118920.0,118910.0,0.855448]
[1752837943853,0.8497818,118920.0,118910.0,0.855448]
[1752837944153,1.27964922,118920.0,118910.0,0.879738]
[1752837947356,0.8447018,118920.0,118910.0,1.30960542]
[1752837947655,1.27456922,118920.0,118910.0,0.879738]
[1752837948161,1.27456922,118920.0,118910.0,1.30960542]
[1752837948162,1.27932922,118920.0,118910.0,1.30960542]
[1752837948863,1.27932922,118920.0,118910.0,0.879738]
[1752837949060,0.68604922,118920.0,118910.0,0.879738]
[1752837949455,1.27928922,118920.0,118910.0,0.879738]
[1752837949657,0.68604922,118920.0,118910.0,1.30960542]
[1752837949857,1.27928922,118920.0,118910.0,1.30960542]
[1752837950058,0.68604922,118920.0,118910.0,1.30960542]
[1752837950253,1.27928922,118920.0,118910.0,1.30960542]
[1752837951058,0.68604922,118920.0,118910.0,1.30960542]
[1752837951262,1.27924922,118920.0,118910.0,1.30960542]
[1752837951464,0.68604922,118920.0,118910.0,1.30960542]
[1752837951762,1.27924922,118920.0,118910.0,1.30960542]
[1752837952164,0.68604922,118920.0,118910.0,1.30960542]
[1752837952461,1.27924922,118920.0,118910.0,1.30960542]
[1752837952764,0.68604922,118920.0,118910.0,1.30960542]
[1752837953063,1.27920922,118920.0,118910.0,1.30960542]
[1752837954256,0.2561818,118920.0,118910.0,1.30960542]
[1752837954564,0.2512618,118920.0,118910.0,1.30960542]
[1752837955162,0.2512618,118920.0,118910.0,1.47771152]
[1752837955364,0.1950618,118920.0,118910.0,1.47771152]
[1752837955766,0.1700918,118920.0,118910.0,1.47771152]
[1752837956564,0.1927518,118920.0,118910.0,1.47771152]
[1752837956963,0.1700918,118920.0,118910.0,1.90757894]
[1752837957267,0.1700918,118920.0,118910.0,1.47771152]
[1752837957663,0.1700918,118920.0,118910.0,1.0478441]
[1752837957865,0.002,118920.0,118910.0,1.90757894]
[1752837958061,0.1700919,118920.0,118910.0,2.07576294]
[1752837958469,0.1700919,118920.0,118910.0,2.09846045]
[1752837958965,0.002,118920.0,118910.0,2.09846045]
[1752837959166,0.1700919,118920.0,118910.0,1.23872561]
[1752837959365,0.1700919,118920.0,118910.0,1.66859303]
[1752837959668,0.1700919,118920.0,118910.0,2.26163303]
[1752837960967,0.1700919,118920.0,118910.0,2.23893552]
[1752837961170,0.002,118920.0,118910.0,2.23893552]
[1752837961772,0.002,118920.0,118910.0,2.26163303]
[1752837961969,0.002,118920.0,118910.0,2.69150045]
[1752837962164,0.2986798,118940.0,118930.0,0.2561478]
[1752837962372,0.2986798,118940.0,118930.0,1.29593894]
[1752837962669,0.3310298,118940.0,118930.0,1.29593894]
[1752837962861,0.2747698,118940.0,118930.0,1.29593894]
[1752837963070,0.2100919,118940.0,118930.0,1.3189414]
[1752837963269,0.2327519,118940.0,118930.0,1.32748362]
[1752837963461,0.2930119,118940.0,118930.0,1.32748362]
[1752837963662,0.3000419,118940.0,118930.0,1.32748362]
[1752837964174,0.3030419,118940.0,118930.0,1.32748362]
[1752837966971,0.3030419,118940.0,118930.0,1.30448116]
[1752837967273,0.3030419,118940.0,118930.0,1.32745323]
[1752837967274,0.2983019,118940.0,118930.0,1.32745323]
[1752837967875,0.3030419,118940.0,118930.0,1.32745323]
[1752837968676,0.3030419,118940.0,118930.0,1.31879101]
[1752837970372,0.3030419,118940.0,118930.0,0.88892359]
[1752837970868,0.3030419,118940.0,118930.0,1.31879101]
[1752837971873,0.3030419,118940.0,118930.0,1.32708572]
[1752837973675,0.3030419,118940.0,118930.0,0.88892359]
[1752837973878,0.3030419,118940.0,118930.0,1.31879101]
[1752837974880,0.3030419,118940.0,118930.0,1.29581894]
[1752837976381,0.3030419,118940.0,118930.0,0.86595152]
[1752837976582,0.2983019,118940.0,118930.0,0.86595152]
[1752837976783,0.2983019,118940.0,118930.0,1.30406665]
[1752837977079,0.3030419,118940.0,118930.0,1.30406665]
[1752837977784,0.2983019,118940.0,118930.0,1.30406665]
[1752837979381,0.3030419,118940.0,118930.0,1.30406665]
[1752837979983,0.2960119,118940.0,118930.0,1.30406665]
[1752837982289,0.2960119,118940.0,118930.0,1.3270412]
[1752837983793,0.2801619,118940.0,118930.0,1.3270412]
[1752837984193,0.2636619,118940.0,118930.0,1.3270412]
[1752837984695,0.2790719,118940.0,118930.0,1.3270412]
[1752837984994,0.2953619,118940.0,118930.0,1.3270412]
[1752837985191,0.2170919,118940.0,118930.0,1.3270412]
[1752837985392,0.2170919,118940.0,118930.0,1.3496747]
[1752837986089,0.2396719,118940.0,118930.0,1.3496747]
[1752837986290,0.1260455,118950.0,118940.0,0.1680637]
[1752837986494,0.1260455,118950.0,118940.0,1.28554819]
[1752837986495,0.1680633,118950.0,118940.0,1.28554819]
[1752837986695,0.1680495,118950.0,118940.0,1.23752819]
[1752837987292,0.1680495,118950.0,118940.0,1.28554819]
[1752837987596,0.1770495,118950.0,118940.0,1.31581154]
[1752837988396,0.1770495,118950.0,118940.0,0.4560767]
[1752837988598,0.1770495,118950.0,118940.0,1.31581154]
[1752837989394,0.1740495,118950.0,118940.0,1.31581154]
[1752837989889,0.1087295,118950.0,118940.0,1.31581154]
[1752837990093,0.1087295,118950.0,118940.0,0.4334432]
[1752837990294,0.1087295,118950.0,118940.0,1.29317804]
[1752837990893,0.006,118950.0,118940.0,1.29317804]
[1752837991196,0.1690496,118950.0,118940.0,1.29517804]
[1752837992099,0.001,118950.0,118940.0,1.29517804]
[1752837992300,0.1690495,118950.0,118940.0,1.29517804]
[1752837992997,0.1723845,118960.0,118940.0,1.33719334]
[1752837993203,0.252066,118960.0,118950.0,1.65028769]
[1752837993396,0.252066,118960.0,118950.0,1.69017116]
[1752837994400,0.301416,118960.0,118950.0,1.69017116]
[1752837995496,0.301416,118960.0,118950.0,1.75667462]
[1752837996101,0.306066,118960.0,118950.0,1.75667462]
[1752837998301,0.306066,118960.0,118950.0,1.77929109]
[1752838000901,0.306066,118960.0,118950.0,1.75667462]
[1752838001500,0.323946,118960.0,118950.0,0.99638512]
[1752838001803,0.77010342,118960.0,118950.0,0.03988347]
[1752838002004,0.77010342,118960.0,118950.0,0.60890892]
[1752838002199,0.77010342,118960.0,118950.0,0.63211278]
[1752838002700,0.77010342,118960.0,118950.0,0.54044592]
[1752838002895,0.340236,118960.0,118950.0,0.56365269]
[1752838003101,0.77010342,118960.0,118950.0,0.02320677]
[1752838003401,0.77010342,118960.0,118950.0,0.61516677]
[1752838003905,0.77010342,118960.0,118950.0,0.59196]
[1752838004906,0.7220288,118960.0,118950.0,0.59196]
[1752838011809,0.2494596,118950.0,118940.0,0.39962244]
[1752838012109,0.2547096,118950.0,118940.0,0.99146244]
[1752838012706,0.2547096,118950.0,118940.0,0.60966964]
[1752838012912,0.2547096,118950.0,118940.0,0.77773334]
[1752838013512,0.2557096,118950.0,118940.0,1.15952614]
[1752838014511,0.2557096,118950.0,118940.0,0.99146244]
[1752838016306,0.2557096,118950.0,118940.0,0.60966964]
[1752838017712,0.2557096,118950.0,118940.0,0.77773334]
[1752838019513,0.2557096,118950.0,118940.0,1.15952614]
[1752838020009,0.2213796,118950.0,118940.0,1.16017614]
[1752838020313,0.2213796,118950.0,118940.0,1.18321625]
[1752838020607,0.04808,118950.0,118940.0,1.18321625]
[1752838020812,0.001,118950.0,118940.0,1.16017614]
[1752838021112,0.1690496,118950.0,118940.0,1.16017614]
[1752838021312,0.2161296,118950.0,118940.0,1.16017614]
[1752838023012,0.04808,118950.0,118940.0,0.77838334]
[1752838023213,0.04808,118950.0,118940.0,1.16017614]
[1752838024016,0.2161296,118950.0,118940.0,1.16017614]
[1752838024413,0.04808,118950.0,118940.0,1.16017614]
[1752838024814,0.2161296,118950.0,118940.0,1.16017614]
[1752838025116,0.2161296,118950.0,118940.0,1.18318251]
[1752838025314,0.04808,118950.0,118940.0,0.80138971]
[1752838025517,0.2161296,118950.0,118940.0,1.18318251]
[1752838025911,0.04808,118950.0,118940.0,1.18318251]
[1752838026107,0.00035,118950.0,118940.0,0.96953371]
[1752838026319,0.2203372,118980.0,118970.0,0.1680213]
[1752838026517,0.2546672,118980.0,118970.0,0.7595013]
[1752838026817,0.2546672,118980.0,118970.0,0.99059132]
[1752838027012,0.2546672,118980.0,118970.0,0.60879852]
[1752838027318,0.2546672,118980.0,118970.0,0.99059132]
[1752838027617,0.2546672,118980.0,118970.0,0.60879852]
[1752838027814,0.2576672,118980.0,118970.0,0.60879852]
[1752838028316,0.2576672,118980.0,118970.0,0.99059132]
[1752838028518,0.2576672,118980.0,118970.0,0.60879852]
[1752838028818,0.2576672,118980.0,118970.0,0.99059132]
[1752838029117,0.2616672,118980.0,118970.0,0.60879852]
[1752838030015,0.2616672,118980.0,118970.0,0.99059132]
[1752838031121,0.2616672,118980.0,118970.0,0.60879852]
[1752838032112,0.2616672,118980.0,118970.0,0.01731852]
[1752838032317,0.2616672,118980.0,118970.0,0.61219852]
[1752838032819,0.2616672,118980.0,118970.0,0.99399132]
[1752838033120,0.2616672,118980.0,118970.0,0.61219852]
[1752838033421,0.2616672,118980.0,118970.0,0.99399132]
[1752838036012,0.2616672,118980.0,118970.0,1.16201262]
[1752838036724,0.2586672,118980.0,118970.0,1.16201262]
[1752838037225,0.2576672,118980.0,118970.0,1.16201262]
[1752838037425,0.2556672,118980.0,118970.0,0.78021982]
[1752838037620,0.2556672,118980.0,118970.0,1.16201262]
[1752838038521,0.2556672,118980.0,118970.0,0.99399132]
[1752838039221,0.2556672,118980.0,118970.0,0.61219852]
[1752838039523,0.2556672,118980.0,118970.0,0.61107852]